[Event "*** SCC Grand Prix: Titled Tuesday Blitz"]
[Site "Chess.com"]
[Date "2020.09.29"]
[Round "7"]
[White "Korchmar_Vasiliy"]
[Black "ZverevLev"]
[Result "1-0"]
[WhiteElo "2553"]
[BlackElo "2354"]
[TimeControl "180+1"]
[EndTime "11:17:40 PDT"]
[Termination "Korchmar_Vasiliy won by resignation"]

1. e4 {[%clk 0:03:00.9]} 1... e5 {[%clk 0:02:55.4]} 2. Nf3 {[%clk 0:03:00.5]}
2... Nc6 {[%clk 0:02:54.2]} 3. Nc3 {[%clk 0:02:59.2]} 3... Nf6 {[%clk
0:02:53.3]} 4. Bb5 {[%clk 0:02:59.6]} 4... Nd4 {[%clk 0:02:45.5]} 5. Bc4 {[%clk
0:02:57.1]} 5... Bc5 {[%clk 0:02:22.2]} 6. Nxe5 {[%clk 0:02:45.6]} 6... O-O
{[%clk 0:02:20.8]} 7. O-O {[%clk 0:02:31]} 7... d6 {[%clk 0:02:19]} 8. Nf3
{[%clk 0:02:31.2]} 8... Bg4 {[%clk 0:02:16.8]} 9. Be2 {[%clk 0:02:31.7]} 9...
Bxf3 {[%clk 0:02:13.1]} 10. Bxf3 {[%clk 0:02:32.6]} 10... Qd7 {[%clk 0:02:10.5]}
11. d3 {[%clk 0:02:29.3]} 11... h6 {[%clk 0:02:03.2]} 12. g3 {[%clk 0:02:21.9]}
12... Nxf3+ {[%clk 0:01:57.7]} 13. Qxf3 {[%clk 0:02:22.8]} 13... Nh7 {[%clk
0:01:57.8]} 14. Be3 {[%clk 0:02:18.2]} 14... Bxe3 {[%clk 0:01:55.5]} 15. fxe3
{[%clk 0:02:15.7]} 15... c6 {[%clk 0:01:53.3]} 16. Kg2 {[%clk 0:02:07.1]} 16...
Rae8 {[%clk 0:01:43.6]} 17. Qf5 {[%clk 0:02:02.8]} 17... Qd8 {[%clk 0:01:38.6]}
18. Qf2 {[%clk 0:01:34.9]} 18... Ng5 {[%clk 0:01:27.2]} 19. h4 {[%clk
0:01:30.1]} 19... Ne6 {[%clk 0:01:25.9]} 20. Qe2 {[%clk 0:01:29.3]} 20... d5
{[%clk 0:01:20.8]} 21. exd5 {[%clk 0:01:24.3]} 21... cxd5 {[%clk 0:01:21.7]} 22.
Qg4 {[%clk 0:01:20.1]} 22... Qb6 {[%clk 0:01:09.9]} 23. Nxd5 {[%clk 0:01:16.3]}
23... Qxb2 {[%clk 0:01:07.9]} 24. Nf6+ {[%clk 0:01:15]} 24... Kh8 {[%clk
0:01:05.7]} 25. Nxe8 {[%clk 0:01:14.7]} 25... Qxc2+ {[%clk 0:01:04.3]} 26. Rf2
{[%clk 0:01:14]} 26... Qc6+ {[%clk 0:01:03]} 27. Qf3 {[%clk 0:01:14.5]} 27...
Qxe8 {[%clk 0:01:01.1]} 28. Qxb7 {[%clk 0:01:12.9]} 28... Nc5 {[%clk 0:00:48]}
29. Qxa7 {[%clk 0:00:58.4]} 29... Nxd3 {[%clk 0:00:38.7]} 30. Rf3 {[%clk
0:00:51.1]} 30... Ne5 {[%clk 0:00:31.1]} 31. Raf1 {[%clk 0:00:35.3]} 31... Nxf3
{[%clk 0:00:25.2]} 32. Rxf3 {[%clk 0:00:36.2]} 32... Qc6 {[%clk 0:00:23.6]} 33.
Qe7 {[%clk 0:00:22.8]} 33... Kg8 {[%clk 0:00:09.4]} 34. e4 {[%clk 0:00:23.1]}
34... Qc2+ {[%clk 0:00:08]} 35. Rf2 {[%clk 0:00:23.4]} 35... Qc6 {[%clk
0:00:08.2]} 36. Kh2 {[%clk 0:00:21.7]} 36... Qb6 {[%clk 0:00:07.4]} 37. Kg2
{[%clk 0:00:17.9]} 37... Qc6 {[%clk 0:00:06.9]} 38. Kg1 {[%clk 0:00:14.2]} 38...
Qc4 {[%clk 0:00:06.9]} 39. e5 {[%clk 0:00:11]} 39... Qc1+ {[%clk 0:00:05.1]} 40.
Kg2 {[%clk 0:00:10.4]} 40... Qc6+ {[%clk 0:00:06]} 41. Kh2 {[%clk 0:00:10.2]}
41... Qc3 {[%clk 0:00:05.6]} 42. e6 {[%clk 0:00:08.7]} 42... Qd4 {[%clk
0:00:05.6]} 43. exf7+ {[%clk 0:00:07.1]} 43... Kh7 {[%clk 0:00:06]} 44. Re2
{[%clk 0:00:05]} 44... Qc4 {[%clk 0:00:05.7]} 45. Qe4+ {[%clk 0:00:04]} 45...
Qxe4 {[%clk 0:00:05.3]} 46. Rxe4 {[%clk 0:00:04.9]} 46... Rxf7 {[%clk
0:00:05.7]} 47. Re2 {[%clk 0:00:05.5]} 47... Ra7 {[%clk 0:00:05.5]} 48. Kg2
{[%clk 0:00:04.2]} 48... g6 {[%clk 0:00:06.4]} 49. Kf2 {[%clk 0:00:03.9]} 49...
Kg7 {[%clk 0:00:07.3]} 50. Ke1 {[%clk 0:00:04.1]} 50... Kf6 {[%clk 0:00:08.2]}
51. Kf2 {[%clk 0:00:04.6]} 51... Ra3 {[%clk 0:00:07.7]} 52. Kg2 {[%clk
0:00:04.1]} 52... Kf5 {[%clk 0:00:08]} 53. Rf2+ {[%clk 0:00:04.1]} 53... Ke5
{[%clk 0:00:07]} 54. Re2+ {[%clk 0:00:04.5]} 54... Kf5 {[%clk 0:00:06.5]} 55.
Rf2+ {[%clk 0:00:05.4]} 55... Ke5 {[%clk 0:00:06.4]} 56. Kh3 {[%clk 0:00:06]}
56... h5 {[%clk 0:00:06.1]} 57. Re2+ {[%clk 0:00:06]} 57... Kf5 {[%clk
0:00:06.6]} 58. Rb2 {[%clk 0:00:06.5]} 58... Rc3 {[%clk 0:00:05.9]} 59. Rb5+
{[%clk 0:00:05.9]} 59... Ke4 {[%clk 0:00:05.2]} 60. Rb6 {[%clk 0:00:06]} 60...
Ra3 {[%clk 0:00:02.6]} 61. Rxg6 {[%clk 0:00:05.8]} 61... Rxa2 {[%clk 0:00:03.2]}
62. Rg5 {[%clk 0:00:06]} 62... Kf3 {[%clk 0:00:03.9]} 63. Rxh5 {[%clk
0:00:05.5]} 63... Kf2 {[%clk 0:00:04.5]} 64. Rf5+ {[%clk 0:00:05.6]} 64... Kg1
{[%clk 0:00:04.7]} 65. Kg4 {[%clk 0:00:05.8]} 65... Ra4+ {[%clk 0:00:04.7]} 66.
Rf4 {[%clk 0:00:05.8]} 66... Ra3 {[%clk 0:00:03.9]} 67. h5 {[%clk 0:00:05.7]}
67... Kg2 {[%clk 0:00:04.5]} 68. Kf5 {[%clk 0:00:04.6]} 68... Rxg3 {[%clk
0:00:04.9]} 69. Rg4 {[%clk 0:00:04.5]} 69... Kh3 {[%clk 0:00:03.3]} 70. Rxg3+
{[%clk 0:00:04.5]} 70... Kxg3 {[%clk 0:00:04.2]} 71. h6 {[%clk 0:00:05]} 71...
Kh4 {[%clk 0:00:05.1]} 72. h7 {[%clk 0:00:05.9]} 72... Kh5 {[%clk 0:00:06]} 1-0

[Event "*** SCC Grand Prix: Titled Tuesday Blitz"]
[Site "Chess.com"]
[Date "2020.09.29"]
[Round "7"]
[White "rasmussvane"]
[Black "Harsha_Bharathakoti"]
[Result "1/2-1/2"]
[WhiteElo "2897"]
[BlackElo "2760"]
[TimeControl "180+1"]
[EndTime "11:17:54 PDT"]
[Termination "Game drawn by agreement"]

1. Nf3 {[%clk 0:03:00.9]} 1... d5 {[%clk 0:02:59.6]} 2. g3 {[%clk 0:03:00.5]}
2... g6 {[%clk 0:02:58.1]} 3. Bg2 {[%clk 0:02:59.9]} 3... Bg7 {[%clk 0:02:58.7]}
4. d4 {[%clk 0:03:00.3]} 4... c6 {[%clk 0:02:59.3]} 5. O-O {[%clk 0:03:00.5]}
5... Nf6 {[%clk 0:02:58.9]} 6. c4 {[%clk 0:03:00.5]} 6... dxc4 {[%clk
0:02:39.2]} 7. a4 {[%clk 0:02:59.3]} 7... O-O {[%clk 0:02:33.7]} 8. Na3 {[%clk
0:02:53.5]} 8... c5 {[%clk 0:02:04.3]} 9. Nxc4 {[%clk 0:02:50.6]} 9... Be6
{[%clk 0:01:46.8]} 10. b3 {[%clk 0:02:43.8]} 10... Bxc4 {[%clk 0:01:40]} 11.
bxc4 {[%clk 0:02:43.8]} 11... cxd4 {[%clk 0:01:27.4]} 12. Nxd4 {[%clk 0:02:43]}
12... Qc8 {[%clk 0:01:25.9]} 13. Ba3 {[%clk 0:02:33.2]} 13... Re8 {[%clk
0:01:06.9]} 14. Qb3 {[%clk 0:02:25.1]} 14... Nc6 {[%clk 0:01:05.3]} 15. Nxc6
{[%clk 0:02:24.5]} 15... bxc6 {[%clk 0:01:06.2]} 16. Qf3 {[%clk 0:02:24.6]}
16... Rb8 {[%clk 0:00:58.6]} 17. Qxc6 {[%clk 0:02:20]} 17... Qxc6 {[%clk
0:00:59.5]} 18. Bxc6 {[%clk 0:02:20.5]} 18... Rec8 {[%clk 0:01:00.4]} 19. Bb5
{[%clk 0:02:17.7]} 19... Ne4 {[%clk 0:00:54.9]} 20. Rac1 {[%clk 0:02:14.7]}
20... Nc5 {[%clk 0:00:40.2]} 21. Rfd1 {[%clk 0:02:09.6]} 21... e6 {[%clk
0:00:35.2]} 22. Bxc5 {[%clk 0:01:36.9]} 22... Rxc5 {[%clk 0:00:36.1]} 23. Rd7
{[%clk 0:01:37.5]} 23... Ra8 {[%clk 0:00:36.8]} 24. Rcd1 {[%clk 0:01:35.9]}
24... Bf6 {[%clk 0:00:35.7]} 25. R1d6 {[%clk 0:01:18.2]} 25... Rcc8 {[%clk
0:00:26.5]} 26. e3 {[%clk 0:01:05.4]} 26... a5 {[%clk 0:00:25.4]} 27. Kg2 {[%clk
0:00:57.5]} 27... Rd8 {[%clk 0:00:24.5]} 28. c5 {[%clk 0:00:54.2]} 28... Rxd7
{[%clk 0:00:22]} 29. Rxd7 {[%clk 0:00:54.4]} 29... Rd8 {[%clk 0:00:21.8]} 30.
Ra7 {[%clk 0:00:54.6]} 30... Rc8 {[%clk 0:00:17.3]} 31. c6 {[%clk 0:00:53.6]}
31... Bd8 {[%clk 0:00:16.8]} 32. Rd7 {[%clk 0:00:47.3]} 32... Kg7 {[%clk
0:00:12]} 33. Kf3 {[%clk 0:00:44]} 33... Kf6 {[%clk 0:00:12.2]} 34. Ke4 {[%clk
0:00:43.7]} 34... Bb6 {[%clk 0:00:12.9]} 35. Rb7 {[%clk 0:00:40.3]} 35... Bd8
{[%clk 0:00:13.3]} 36. f4 {[%clk 0:00:36.7]} 36... Rc7 {[%clk 0:00:13.6]} 37.
Rb8 {[%clk 0:00:36.1]} 37... Be7 {[%clk 0:00:13.9]} 38. Kd4 {[%clk 0:00:32.5]}
38... Bb4 {[%clk 0:00:11.7]} 39. e4 {[%clk 0:00:31.4]} 39... Ke7 {[%clk
0:00:09.6]} 40. e5 {[%clk 0:00:31.1]} 40... h6 {[%clk 0:00:07.2]} 41. Rh8 {[%clk
0:00:24.4]} 41... h5 {[%clk 0:00:07.4]} 42. Rb8 {[%clk 0:00:22.3]} 42... Ba3
{[%clk 0:00:04.2]} 43. Ke4 {[%clk 0:00:21.6]} 43... Bb4 {[%clk 0:00:04.2]} 44.
Ra8 {[%clk 0:00:19]} 44... Be1 {[%clk 0:00:03.7]} 45. Kf3 {[%clk 0:00:18.7]}
45... Bb4 {[%clk 0:00:04]} 46. h3 {[%clk 0:00:18.6]} 46... Bc3 {[%clk
0:00:04.5]} 47. Ke4 {[%clk 0:00:18.2]} 47... Bb4 {[%clk 0:00:04.9]} 48. g4
{[%clk 0:00:18.6]} 48... hxg4 {[%clk 0:00:05.1]} 49. hxg4 {[%clk 0:00:19.5]}
49... Be1 {[%clk 0:00:04.4]} 50. Rh8 {[%clk 0:00:18.1]} 50... Bb4 {[%clk
0:00:04.3]} 51. Rb8 {[%clk 0:00:18]} 51... Be1 {[%clk 0:00:03.9]} 52. f5 {[%clk
0:00:18.2]} 52... gxf5+ {[%clk 0:00:04]} 53. gxf5 {[%clk 0:00:19.1]} 53... exf5+
{[%clk 0:00:04.9]} 54. Kxf5 {[%clk 0:00:20]} 54... Bc3 {[%clk 0:00:05.1]} 55.
Ra8 {[%clk 0:00:14.1]} 55... Bb4 {[%clk 0:00:05.2]} 56. Rh8 {[%clk 0:00:13.1]}
56... Bc3 {[%clk 0:00:05.4]} 57. Rh7 {[%clk 0:00:13.3]} 57... Kf8 {[%clk
0:00:05]} 58. Rh8+ {[%clk 0:00:10.1]} 58... Kg7 {[%clk 0:00:03.8]} 59. Rh3
{[%clk 0:00:10.3]} 59... Bb4 {[%clk 0:00:03.4]} 60. Rd3 {[%clk 0:00:10.4]} 60...
Kf8 {[%clk 0:00:03.1]} 61. Rd7 {[%clk 0:00:10.7]} 61... Rxd7 {[%clk 0:00:03.1]}
62. cxd7 {[%clk 0:00:11.6]} 62... Ke7 {[%clk 0:00:04]} 63. Ke4 {[%clk
0:00:11.6]} 63... Bc3 {[%clk 0:00:03.3]} 64. Kd5 {[%clk 0:00:11.4]} 64... Bb2
{[%clk 0:00:02.5]} 65. Bc6 {[%clk 0:00:09.7]} 65... Bc3 {[%clk 0:00:02.9]} 66.
Ke4 {[%clk 0:00:09.7]} 66... Bb2 {[%clk 0:00:02.8]} 67. Bb5 {[%clk 0:00:10.1]}
67... Bc3 {[%clk 0:00:03.1]} 68. Kf4 {[%clk 0:00:10.7]} 68... Bb2 {[%clk
0:00:03.6]} 69. Kf5 {[%clk 0:00:11]} 69... Bc3 {[%clk 0:00:04.2]} 70. Bc6 {[%clk
0:00:10.8]} 70... Bb2 {[%clk 0:00:04.5]} 71. Ke4 {[%clk 0:00:11.3]} 71... Bc3
{[%clk 0:00:04.9]} 72. Kd5 {[%clk 0:00:11.2]} 72... Bb2 {[%clk 0:00:05.4]} 73.
Bb5 {[%clk 0:00:10.5]} 73... Bc3 {[%clk 0:00:05.8]} 74. Ke4 {[%clk 0:00:09.2]}
74... Bb2 {[%clk 0:00:06.2]} 75. Kf4 {[%clk 0:00:07.2]} 75... Bc3 {[%clk
0:00:06.5]} 76. Kf5 {[%clk 0:00:07.3]} 76... Bb2 {[%clk 0:00:07]} 77. Bc6 {[%clk
0:00:04.1]} 77... Bc3 {[%clk 0:00:07.2]} 78. Bb5 {[%clk 0:00:04]} 78... Bb2
{[%clk 0:00:07.6]} 79. Bc4 {[%clk 0:00:04.3]} 79... Bc3 {[%clk 0:00:07.9]} 80.
Bxf7 {[%clk 0:00:04.5]} 80... Kxd7 {[%clk 0:00:08.4]} 81. Bc4 {[%clk 0:00:04.4]}
81... Ke7 {[%clk 0:00:08.5]} 82. Ke4 {[%clk 0:00:04.9]} 82... Bb4 {[%clk
0:00:09.4]} 83. Kd5 {[%clk 0:00:04.6]} 1/2-1/2

[Event "*** SCC Grand Prix: Titled Tuesday Blitz"]
[Site "Chess.com"]
[Date "2020.09.29"]
[Round "7"]
[White "Margarita2907"]
[Black "JuliaEfremova"]
[Result "0-1"]
[WhiteElo "2192"]
[BlackElo "2342"]
[TimeControl "180+1"]
[EndTime "11:18:00 PDT"]
[Termination "JuliaEfremova won by resignation"]

1. e4 {[%clk 0:03:00.9]} 1... d5 {[%clk 0:02:57.1]} 2. exd5 {[%clk 0:02:59.9]}
2... Qxd5 {[%clk 0:02:58]} 3. Nc3 {[%clk 0:02:58.6]} 3... Qa5 {[%clk 0:02:58.4]}
4. d4 {[%clk 0:02:57.6]} 4... Nf6 {[%clk 0:02:58.7]} 5. Nf3 {[%clk 0:02:53.4]}
5... Bg4 {[%clk 0:02:58.4]} 6. h3 {[%clk 0:02:49.8]} 6... Bxf3 {[%clk
0:02:58.5]} 7. Qxf3 {[%clk 0:02:45.6]} 7... c6 {[%clk 0:02:58.9]} 8. Bc4 {[%clk
0:02:42.7]} 8... e6 {[%clk 0:02:53.5]} 9. Bd2 {[%clk 0:02:40.1]} 9... Qc7 {[%clk
0:02:52]} 10. O-O {[%clk 0:02:34.9]} 10... Nbd7 {[%clk 0:02:51.9]} 11. Ne4
{[%clk 0:02:29.2]} 11... Be7 {[%clk 0:02:50.9]} 12. Bd3 {[%clk 0:02:23.2]} 12...
Nxe4 {[%clk 0:02:50.6]} 13. Qxe4 {[%clk 0:02:21.4]} 13... Nf6 {[%clk 0:02:50.6]}
14. Qe2 {[%clk 0:02:18.9]} 14... Rd8 {[%clk 0:02:49.2]} 15. c3 {[%clk 0:02:18]}
15... O-O {[%clk 0:02:48.5]} 16. Bg5 {[%clk 0:02:14.7]} 16... h6 {[%clk
0:02:47.4]} 17. Bh4 {[%clk 0:02:13.7]} 17... c5 {[%clk 0:02:35]} 18. Bg3 {[%clk
0:02:05.3]} 18... Qb6 {[%clk 0:02:30.7]} 19. dxc5 {[%clk 0:02:02.6]} 19... Bxc5
{[%clk 0:02:26.3]} 20. Rad1 {[%clk 0:02:00.2]} 20... Bd6 {[%clk 0:02:13.4]} 21.
Bxd6 {[%clk 0:01:50.1]} 21... Rxd6 {[%clk 0:02:12.4]} 22. Rd2 {[%clk 0:01:44.5]}
22... Rfd8 {[%clk 0:02:11.7]} 23. Rfd1 {[%clk 0:01:43.4]} 23... Kh8 {[%clk
0:01:58.9]} 24. Bc4 {[%clk 0:01:38]} 24... Kg8 {[%clk 0:01:18.9]} 25. Rxd6
{[%clk 0:01:31.9]} 25... Rxd6 {[%clk 0:01:17.7]} 26. Rxd6 {[%clk 0:01:29.9]}
26... Qxd6 {[%clk 0:01:16.7]} 27. Qf3 {[%clk 0:01:28.6]} 27... Qd7 {[%clk
0:01:07.4]} 28. Qf4 {[%clk 0:01:23.8]} 28... a6 {[%clk 0:01:05.7]} 29. Qe5
{[%clk 0:01:03.7]} 29... Kf8 {[%clk 0:01:05.7]} 30. Be2 {[%clk 0:00:39.2]} 30...
Kg8 {[%clk 0:01:01.8]} 31. Bf3 {[%clk 0:00:37.6]} 31... Kh7 {[%clk 0:00:49]} 32.
Qb8 {[%clk 0:00:34.8]} 32... b5 {[%clk 0:00:48.5]} 33. Qb6 {[%clk 0:00:33.1]}
33... Qd2 {[%clk 0:00:43]} 34. Qxa6 {[%clk 0:00:27.4]} 34... Qxb2 {[%clk
0:00:42.7]} 35. Bc6 {[%clk 0:00:20.5]} 35... Qc1+ {[%clk 0:00:36.7]} 36. Kh2
{[%clk 0:00:19.3]} 36... Qf4+ {[%clk 0:00:35.5]} 37. Kg1 {[%clk 0:00:19.8]}
37... Qc1+ {[%clk 0:00:35.6]} 38. Kh2 {[%clk 0:00:20.4]} 38... Qxc3 {[%clk
0:00:34.5]} 39. Bxb5 {[%clk 0:00:19]} 39... Qe5+ {[%clk 0:00:33.2]} 40. Kg1
{[%clk 0:00:17.7]} 40... Qe1+ {[%clk 0:00:33.5]} 41. Kh2 {[%clk 0:00:17.8]}
41... Qxf2 {[%clk 0:00:33.3]} 42. Bd3+ {[%clk 0:00:17.7]} 42... g6 {[%clk
0:00:32.4]} 43. Qb7 {[%clk 0:00:15.7]} 43... Nh5 {[%clk 0:00:30.5]} 44. Qf3
{[%clk 0:00:12.7]} 44... Qa7 {[%clk 0:00:27.5]} 45. Bc4 {[%clk 0:00:11.3]} 45...
Qc7+ {[%clk 0:00:26.1]} 46. Kg1 {[%clk 0:00:10.4]} 46... Qxc4 {[%clk 0:00:26.2]}
47. Qxf7+ {[%clk 0:00:10.1]} 47... Ng7 {[%clk 0:00:26.7]} 48. Qf2 {[%clk
0:00:09.7]} 48... Qc1+ {[%clk 0:00:24.4]} 49. Kh2 {[%clk 0:00:09.2]} 49... Qc7+
{[%clk 0:00:25.3]} 50. Kg1 {[%clk 0:00:09]} 50... Nf5 {[%clk 0:00:25.7]} 51. a4
{[%clk 0:00:08.2]} 51... h5 {[%clk 0:00:24.7]} 52. Qb2 {[%clk 0:00:06.6]} 52...
Qa7+ {[%clk 0:00:20.9]} 53. Kh2 {[%clk 0:00:06.6]} 53... Qxa4 {[%clk 0:00:21.2]}
54. Qf6 {[%clk 0:00:06.8]} 54... Qf4+ {[%clk 0:00:19]} 55. Kg1 {[%clk
0:00:06.7]} 55... Qe3+ {[%clk 0:00:18.2]} 56. Kh2 {[%clk 0:00:06]} 56... Qg3+
{[%clk 0:00:18.6]} 57. Kg1 {[%clk 0:00:06.3]} 57... Ng7 {[%clk 0:00:18]} 58. Qf7
{[%clk 0:00:05.4]} 58... e5 {[%clk 0:00:18.3]} 59. Qe7 {[%clk 0:00:05.2]} 59...
e4 {[%clk 0:00:18.7]} 60. Qxe4 {[%clk 0:00:04.9]} 60... Qg5 {[%clk 0:00:18.6]}
61. Qb7 {[%clk 0:00:03.5]} 61... Qc1+ {[%clk 0:00:17.8]} 62. Kh2 {[%clk
0:00:04.1]} 62... Qf4+ {[%clk 0:00:18.3]} 63. Kg1 {[%clk 0:00:04.4]} 63... Qf5
{[%clk 0:00:18.4]} 64. Kh2 {[%clk 0:00:04.5]} 64... Kh6 {[%clk 0:00:18.8]} 65.
Qb2 {[%clk 0:00:03.6]} 65... Ne6 {[%clk 0:00:18.9]} 66. Qe2 {[%clk 0:00:03.1]}
66... Nf4 {[%clk 0:00:18]} 67. Qd2 {[%clk 0:00:03.4]} 67... Qg5 {[%clk 0:00:18]}
68. g3 {[%clk 0:00:03]} 68... Nxh3 {[%clk 0:00:17.8]} 69. Qg2 {[%clk 0:00:02.1]}
69... Qg4 {[%clk 0:00:15.5]} 70. Qxh3 {[%clk 0:00:01.6]} 70... Qxh3+ {[%clk
0:00:15.8]} 71. Kxh3 {[%clk 0:00:02.5]} 71... Kg5 {[%clk 0:00:16.4]} 72. Kg2
{[%clk 0:00:03.1]} 72... Kg4 {[%clk 0:00:16.9]} 73. Kh2 {[%clk 0:00:03.6]} 73...
h4 {[%clk 0:00:16.7]} 74. gxh4 {[%clk 0:00:03.4]} 74... Kxh4 {[%clk 0:00:17.2]}
75. Kg2 {[%clk 0:00:03.9]} 75... Kg4 {[%clk 0:00:17.5]} 76. Kh2 {[%clk
0:00:04.2]} 76... Kf3 {[%clk 0:00:17.8]} 77. Kh3 {[%clk 0:00:04.3]} 77... g5
{[%clk 0:00:18.2]} 78. Kh2 {[%clk 0:00:04.6]} 78... g4 {[%clk 0:00:18.6]} 79.
Kg1 {[%clk 0:00:05.2]} 79... Kg3 {[%clk 0:00:18.7]} 80. Kh1 {[%clk 0:00:04.8]}
80... Kh3 {[%clk 0:00:17.2]} 81. Kg1 {[%clk 0:00:05]} 81... Kg3 {[%clk
0:00:11.4]} 82. Kh1 {[%clk 0:00:05.2]} 82... Kf2 {[%clk 0:00:11]} 83. Kh2 {[%clk
0:00:05.4]} 83... g3+ {[%clk 0:00:11.2]} 84. Kh3 {[%clk 0:00:05.6]} 84... g2
{[%clk 0:00:11.6]} 85. Kh4 {[%clk 0:00:04.9]} 85... g1=Q {[%clk 0:00:12.5]} 0-1

[Event "*** SCC Grand Prix: Titled Tuesday Blitz"]
[Site "Chess.com"]
[Date "2020.09.29"]
[Round "7"]
[White "DarZay"]
[Black "RasSanti"]
[Result "1-0"]
[WhiteElo "2120"]
[BlackElo "2309"]
[TimeControl "180+1"]
[EndTime "11:18:01 PDT"]
[Termination "DarZay won on time"]

1. e4 {[%clk 0:03:00]} 1... e5 {[%clk 0:02:44.5]} 2. Nf3 {[%clk 0:02:58.9]} 2...
Nc6 {[%clk 0:02:43.8]} 3. d4 {[%clk 0:02:58]} 3... exd4 {[%clk 0:02:43.1]} 4.
Nxd4 {[%clk 0:02:58.4]} 4... Nf6 {[%clk 0:02:35.5]} 5. Nc3 {[%clk 0:02:58]} 5...
Bb4 {[%clk 0:02:34.3]} 6. Nxc6 {[%clk 0:02:54.5]} 6... bxc6 {[%clk 0:02:35.2]}
7. e5 {[%clk 0:02:52.1]} 7... Qe7 {[%clk 0:02:29.4]} 8. Qe2 {[%clk 0:02:48.5]}
8... Bxc3+ {[%clk 0:02:18.1]} 9. bxc3 {[%clk 0:02:48.4]} 9... Nd5 {[%clk
0:02:18.4]} 10. c4 {[%clk 0:02:46.4]} 10... Ba6 {[%clk 0:02:18.7]} 11. Qg4
{[%clk 0:02:36.1]} 11... Qxe5+ {[%clk 0:02:15.1]} 12. Qe2 {[%clk 0:02:35.7]}
12... Qxe2+ {[%clk 0:02:10.3]} 13. Bxe2 {[%clk 0:02:35.9]} 13... Nb6 {[%clk
0:02:06.4]} 14. c5 {[%clk 0:02:29.5]} 14... Bxe2 {[%clk 0:02:04.6]} 15. cxb6
{[%clk 0:02:28.3]} 15... Bc4 {[%clk 0:01:57.5]} 16. b7 {[%clk 0:02:25.9]} 16...
Rb8 {[%clk 0:01:56.9]} 17. Rb1 {[%clk 0:02:25.8]} 17... O-O {[%clk 0:01:47.5]}
18. Be3 {[%clk 0:02:24.4]} 18... Rfe8 {[%clk 0:01:35.3]} 19. Kd1 {[%clk
0:02:13.8]} 19... Ba6 {[%clk 0:01:18.7]} 20. Bxa7 {[%clk 0:02:05.3]} 20... Rxb7
{[%clk 0:01:17]} 21. Rxb7 {[%clk 0:02:04.9]} 21... Bxb7 {[%clk 0:01:17.9]} 22.
Bc5 {[%clk 0:01:59]} 22... d6 {[%clk 0:01:16.9]} 23. Bb4 {[%clk 0:01:58.8]}
23... c5 {[%clk 0:01:16]} 24. Bc3 {[%clk 0:01:58.8]} 24... Bxg2 {[%clk
0:01:14.9]} 25. Rg1 {[%clk 0:01:57.8]} 25... Bf3+ {[%clk 0:01:14.9]} 26. Kd2
{[%clk 0:01:57.3]} 26... g6 {[%clk 0:01:14]} 27. Rg3 {[%clk 0:01:56.1]} 27...
Bd5 {[%clk 0:01:10.6]} 28. a4 {[%clk 0:01:54.6]} 28... Ra8 {[%clk 0:01:02.6]}
29. Re3 {[%clk 0:01:51.8]} 29... Kf8 {[%clk 0:00:50.9]} 30. a5 {[%clk
0:01:49.2]} 30... Be6 {[%clk 0:00:46.3]} 31. f4 {[%clk 0:01:42.5]} 31... Rb8
{[%clk 0:00:29.5]} 32. Re1 {[%clk 0:01:38.4]} 32... Ra8 {[%clk 0:00:28.7]} 33.
Rb1 {[%clk 0:01:36.7]} 33... Ra7 {[%clk 0:00:26.5]} 34. Bf6 {[%clk 0:01:32.8]}
34... Ke8 {[%clk 0:00:25.6]} 35. Rb8+ {[%clk 0:01:29.6]} 35... Kd7 {[%clk
0:00:25.6]} 36. Rd8+ {[%clk 0:01:24.2]} 36... Kc6 {[%clk 0:00:24.9]} 37. Bc3
{[%clk 0:01:24.4]} 37... d5 {[%clk 0:00:22.7]} 38. Kc1 {[%clk 0:01:11.9]} 38...
h5 {[%clk 0:00:20.6]} 39. h4 {[%clk 0:01:10.2]} 39... Kb5 {[%clk 0:00:20.1]} 40.
Rb8+ {[%clk 0:01:09.3]} 40... Kc4 {[%clk 0:00:20]} 41. Bd2 {[%clk 0:01:09.4]}
41... d4 {[%clk 0:00:19.8]} 42. Kb2 {[%clk 0:01:01.8]} 42... Kd5 {[%clk
0:00:19.4]} 43. Ka3 {[%clk 0:00:56.1]} 43... c4 {[%clk 0:00:18.2]} 44. Bb4
{[%clk 0:00:51.2]} 44... Ke4 {[%clk 0:00:17.3]} 45. Ka4 {[%clk 0:00:50.3]} 45...
d3 {[%clk 0:00:16.3]} 46. cxd3+ {[%clk 0:00:49.6]} 46... cxd3 {[%clk 0:00:17.2]}
47. Kb5 {[%clk 0:00:47]} 47... Bd7+ {[%clk 0:00:12.3]} 48. Kc5 {[%clk
0:00:45.2]} 48... Ba4 {[%clk 0:00:12]} 49. Rd8 {[%clk 0:00:37.5]} 49... Kxf4
{[%clk 0:00:09.7]} 50. Rxd3 {[%clk 0:00:36.5]} 50... Kg4 {[%clk 0:00:10.6]} 51.
Rd4+ {[%clk 0:00:35.1]} 51... Kg3 {[%clk 0:00:10.3]} 52. Be1+ {[%clk 0:00:33.1]}
52... Kf3 {[%clk 0:00:09.5]} 53. Bd2 {[%clk 0:00:32.1]} 53... Bb3 {[%clk
0:00:02.8]} 54. Rd3+ {[%clk 0:00:30]} 54... Ke2 {[%clk 0:00:01.5]} 55. Rxb3
{[%clk 0:00:27.5]} 55... Kxd2 {[%clk 0:00:02.4]} 56. Ra3 {[%clk 0:00:19.4]}
56... Ke2 {[%clk 0:00:02.9]} 57. a6 {[%clk 0:00:18.7]} 57... f6 {[%clk
0:00:03.3]} 58. Kb5 {[%clk 0:00:17.8]} 58... g5 {[%clk 0:00:03.6]} 59. hxg5
{[%clk 0:00:17.5]} 59... fxg5 {[%clk 0:00:04.5]} 60. Ra2+ {[%clk 0:00:17.6]}
60... Ke3 {[%clk 0:00:03.9]} 61. Ka5 {[%clk 0:00:17.3]} 61... g4 {[%clk
0:00:03]} 62. Ra3+ {[%clk 0:00:17]} 62... Kf4 {[%clk 0:00:02.8]} 63. Ra4+ {[%clk
0:00:16.5]} 63... Kg5 {[%clk 0:00:03.7]} 64. Rb4 {[%clk 0:00:16.5]} 64... h4
{[%clk 0:00:03.2]} 65. Rb7 {[%clk 0:00:16.5]} 65... Rxa6+ {[%clk 0:00:04.1]} 66.
Kxa6 {[%clk 0:00:16.4]} 66... g3 {[%clk 0:00:04.6]} 67. Rxc7 {[%clk 0:00:15.8]}
67... h3 {[%clk 0:00:04.7]} 68. Rg7+ {[%clk 0:00:15.6]} 68... Kf4 {[%clk
0:00:04.4]} 69. Rf7+ {[%clk 0:00:15.9]} 69... Kg4 {[%clk 0:00:04.1]} 70. Rg7+
{[%clk 0:00:15.9]} 70... Kf3 {[%clk 0:00:04.6]} 71. Rh7 {[%clk 0:00:12.2]} 71...
h2 {[%clk 0:00:03.9]} 72. Kb5 {[%clk 0:00:11.9]} 72... g2 {[%clk 0:00:03.5]} 73.
Rxh2 {[%clk 0:00:10.3]} 73... g1=Q {[%clk 0:00:02.9]} 74. Rb2 {[%clk 0:00:07.5]}
74... Qc1 {[%clk 0:00:02.5]} 75. Rb4 {[%clk 0:00:07.2]} 75... Ke3 {[%clk
0:00:02.1]} 76. Ka5 {[%clk 0:00:06.2]} 76... Qc3 {[%clk 0:00:01.5]} 77. Kb5
{[%clk 0:00:05.9]} 77... Kd2 {[%clk 0:00:01]} 78. Ka4 {[%clk 0:00:05.2]} 78...
Qe5 {[%clk 0:00:01.6]} 79. Rb5 {[%clk 0:00:04.6]} 1-0